lending/lending_fUSD_20260102
["ID","MTS","AMOUNT","RATE_DAILY","PERIOD"]
[400320415,1767366647699,-399.0,0.00018863,2]
[400320416,1767366647709,-1158.06922939,0.00018867,2]
[400320417,1767366647718,-1000.0,0.00018936,2]
[400320418,1767366647728,-531.1974077,0.00018958,2]
[400320419,1767366647737,-399.0,0.00018977,2]
[400320420,1767366647746,-165.03,0.00018997,2]
[400320421,1767366647755,-300.0,0.00019,2]
[400320422,1767366647764,-399.0,0.00019031,2]
[400320423,1767366647773,-399.0,0.00019069,2]
[400320424,1767366647783,-399.0,0.00019131,2]
[400320425,1767366647793,-2500.0,0.00019164,2]
[400320426,1767366647803,-1117.45821686,0.00019177,5]
[400320427,1767366647813,-221.57085352,0.00019177,5]
[400320428,1767366647822,-151.0,0.00019178,2]
[400320429,1767366647833,-151.0,0.00019178,2]
[400320430,1767366647843,-151.0,0.00019178,2]
[400320431,1767366647853,-151.0,0.00019178,2]
[400320432,1767366647862,-151.0,0.00019178,2]
[400320433,1767366647872,-151.0,0.00019178,2]
[400320434,1767366647884,-640.0,0.00019189,2]
[400320435,1767366647894,-399.0,0.00019221,2]
[400320436,1767366647904,-399.0,0.00019365,2]
[400320437,1767366647913,-399.0,0.00019435,2]
[400320438,1767366647923,-1000.0,0.00019438,2]
[400320439,1767366647933,-399.0,0.00019444,2]
[400320440,1767366647942,-399.0,0.00019506,2]
[400320441,1767366647951,-399.0,0.00019509,2]
[400320442,1767366647961,-399.0,0.00019709,2]
[400320443,1767366647971,-2049.21805866,0.00019712,2]
[400320444,1767366647980,-286.04323347,0.00019732,2]
[400320445,1767366647990,-399.0,0.00019753,2]
[400320446,1767366647999,-399.0,0.00019905,2]
[400320447,1767366648009,-893.7220035,0.0001995,15]
[400320448,1767366648020,-165.03,0.00019997,2]
[400320449,1767366648032,-399.0,0.00019999,2]
[400320450,1767366648044,-502.0,0.0002,2]
[400320451,1767366648055,-8300.0,0.0002,4]
[400320452,1767366648067,-399.0,0.00020057,2]
[400320453,1767366648079,-300.0,0.00020092,2]
[400320454,1767366648090,-399.0,0.00020115,2]
[400320455,1767366648101,-1000.0,0.00020116,2]
[400320456,1767366648113,-399.0,0.0002013,2]
[400320457,1767366648125,-485.76,0.00020187,2]
[400320458,1767366648135,-399.0,0.00020232,2]
[400320459,1767366648145,-399.0,0.00020288,2]
[400320460,1767366648155,-399.0,0.00020322,2]
[400320461,1767366648165,-399.0,0.00020397,2]
[400320462,1767366648175,-166.41,0.00020442,2]
[400320463,1767366648186,-399.0,0.00020515,2]
[400320464,1767366648197,-399.0,0.00020586,2]
[400320465,1767366648207,-1000.0,0.00020795,2]
[400320466,1767366648218,-1000.0,0.00020829,2]
[400320467,1767366648229,-9999.99,0.00020951,2]
[400320468,1767366648240,-10476.73,0.00020951,2]
[400320469,1767366648250,-9999.99,0.00020951,2]
[400320470,1767366648261,-150.99,0.00020951,2]
[400320471,1767366648272,-150.99,0.00020951,2]
[400320472,1767366648284,-4999.99,0.00020951,2]
[400320473,1767366648295,-9999.99,0.00020951,2]
[400320475,1767366648306,-1527.36,0.00020951,2]
[400320477,1767366648318,-9999.99,0.00020951,2]
[400320478,1767366648330,-999.99,0.00020951,2]
[400320479,1767366648342,-14488.88,0.00020951,2]
[400320480,1767366648353,-682.422326,0.00020951,2]
[400320481,1767366648365,-682.422326,0.00020951,2]
[400320483,1767366648376,-682.422326,0.00020951,2]
[400320485,1767366648387,-682.422326,0.00020951,2]
[400320487,1767366648398,-437.482557,0.00020951,2]
[400320488,1767366648409,-437.482557,0.00020951,2]
[400320489,1767366648420,-437.482557,0.00020951,2]
[400320490,1767366648431,-437.482557,0.00020951,2]
[400320491,1767366648441,-151.0,0.00020951,2]
[400320492,1767366648451,-151.0,0.00020951,2]
[400320493,1767366648461,-274.850976,0.00020951,2]
[400320494,1767366648471,-151.0,0.00020951,2]
[400320495,1767366648480,-151.0,0.00020951,2]
[400320496,1767366648491,-151.0,0.00020951,2]
[400320497,1767366648502,-347.295261,0.00020951,2]
[400320498,1767366648513,-347.295261,0.00020951,2]
[400320499,1767366648524,-347.295261,0.00020951,2]
[400320500,1767366648535,-347.295261,0.00020951,2]
[400320501,1767366648546,-272.996241,0.00020951,2]
[400320502,1767366648557,-272.996241,0.00020951,2]
[400320503,1767366648569,-272.996241,0.00020951,2]
[400320504,1767366648580,-272.996241,0.00020951,2]
[400320505,1767366648590,-165.03,0.00020997,2]
[400320506,1767366648601,-350.0,0.00021,2]
[400320507,1767366648612,-179.664,0.0002104,2]
[400320508,1767366648622,-913.0,0.0002104,2]
[400320509,1767366648632,-640.0,0.00021108,2]
[400320510,1767366648643,-343.231,0.00021155,2]
[400320511,1767366648654,-6838.86815214,0.00021271,2]
[400320512,1767366648665,-4525.12249489,0.00021271,2]
[400320513,1767366648676,-3462.0,0.00021534,2]
[400320514,1767366648687,-432.0,0.00021534,2]
[400320515,1767366648698,-178.0,0.00021606,2]
[400320516,1767366648709,-682.422326,0.00021757,2]
[400320517,1767366648720,-682.422326,0.00021757,2]
[400320518,1767366648732,-682.422326,0.00021757,2]
[400320519,1767366648742,-682.422326,0.00021757,2]
[400320520,1767366648753,-437.482557,0.00021757,2]
[400320521,1767366648763,-437.482557,0.00021757,2]
[400320522,1767366648774,-437.482557,0.00021757,2]
[400320523,1767366648786,-437.482557,0.00021757,2]
[400320524,1767366648803,-151.0,0.00021757,2]
[400320525,1767366648814,-151.0,0.00021757,2]
[400320526,1767366648825,-151.0,0.00021757,2]
[400320527,1767366648835,-151.0,0.00021757,2]
[400320528,1767366648846,-151.0,0.00021757,2]
[400320529,1767366648856,-150.0,0.00021828,2]
[400320530,1767366648867,-178.0,0.00021828,2]
[400320531,1767366648879,-500.0,0.00021917,2]
[400320532,1767366648889,-500.0,0.00021917,2]
[400320533,1767366648900,-500.0,0.00021917,2]
[400320534,1767366648910,-500.0,0.00021917,2]
[400320535,1767366648921,-500.0,0.00021917,2]
[400320536,1767366648931,-500.0,0.00021917,2]
[400320537,1767366648941,-500.0,0.00021917,2]
[400320538,1767366648952,-360.76432622,0.00021917,2]
[400320539,1767366648963,-347.295261,0.00021917,2]
[400320540,1767366648973,-347.295261,0.00021917,2]
[400320541,1767366648984,-347.295261,0.00021917,2]
[400320542,1767366648995,-347.295261,0.00021917,2]
[400320543,1767366649006,-272.996241,0.00021917,2]
[400320544,1767366649017,-272.996241,0.00021917,2]
[400320545,1767366649028,-272.996241,0.00021917,2]
[400320546,1767366649042,-272.996241,0.00021917,2]
[400320547,1767366649053,-5000.0,0.00021918,2]
[400320548,1767366649063,-150.0,0.00021918,2]
[400320549,1767366649074,-150.0,0.00021918,2]
[400320550,1767366649084,-2322.48,0.00021924,2]
[400320551,1767366649095,-178.0,0.00022051,2]
[400320552,1767366649105,-173.90775935,0.00022055,2]
[400320553,1767366649115,-178.0,0.00022274,2]
[400320554,1767366649126,-178.0,0.00022497,2]
[400320555,1767366649136,-177.84,0.000226,14]
[400320556,1767366649146,-178.0,0.00022719,2]
[400320557,1767366649156,-1000.0,0.00022723,2]
[400320558,1767366649165,-178.0,0.00022942,2]
[400320559,1767366649175,-400.0,0.00023,2]
[400320560,1767366649184,-640.0,0.00023027,2]
[400320561,1767366649194,-221.88,0.00023543,2]
[400320562,1767366649205,-221.89,0.00023686,2]
[400320563,1767366649215,-2000.0,0.000238,2]
[400320564,1767366649224,-166.41,0.00024171,2]
[400320565,1767366649235,-6838.86815214,0.00024348,2]
[400320566,1767366649246,-286.04323347,0.00024348,2]
[400320567,1767366649257,-4525.12249489,0.00024348,2]
[400320568,1767366649268,-1000.0,0.00024658,2]
[400320569,1767366649280,-500.0,0.00024799,2]
[400320570,1767366649294,-27404.85827499,0.000248,3]
[400320573,1767366650004,-166.80790393,0.00018922,2]
[400320574,1767366650014,-201.85,0.00023509,2]
[400320575,1767366650023,-281.34209607,0.000248,3]
[400320576,1767366650035,-257.23744811,0.000248,3]
[400320577,1767366650049,-2297.3927634,0.000248,3]
[400320578,1767366650061,-554.60931742,0.000248,3]
[400320579,1767366650073,-361409.73576906,0.000248,3]
[400320580,1767366650596,-2502.447,0.00015115,2]
[400320581,1767366650608,-166.80790393,0.00022903,2]
[400320582,1767366650618,-3534.75427934,0.000248,3]
[400320583,1767366650631,-23842.33825577,0.000248,3]
[400320584,1767366650643,-3509.4470697,0.000248,3]
[400320585,1767367052957,245.0,0.00030136,120]
[400320586,1767367249654,578.0,0.00030137,120]
[400320590,1767367705651,-306.82362738,0.000125,2]
[400320591,1767367705678,-4418.06705996,0.00013,2]
[400320592,1767367705705,-1105.09580531,0.0001305,2]
[400320593,1767367705731,-739.77314144,0.00013443,2]
[400320594,1767367705757,-223.65078012,0.00013599,2]
[400320595,1767367705783,-662.09,0.00013699,2]
[400320596,1767367705808,-263.0,0.00013699,2]
[400320597,1767367705836,-223.65078012,0.00013903,2]
[400320598,1767367705862,-150.0,0.00013988,2]
[400320599,1767367705887,-300.0,0.00013988,2]
[400320600,1767367705915,-500.0,0.00013989,2]
[400320601,1767367705944,-538.50767594,0.00013989,2]
[400320602,1767367705978,-500.0,0.00013989,2]
[400320603,1767367706011,-500.0,0.00013989,2]
[400320604,1767367706042,-500.0,0.00013989,2]
[400320605,1767367706074,-500.0,0.00013989,2]
[400320606,1767367706105,-237.13285061,0.00013989,2]
[400320607,1767367706137,-500.0,0.00013989,2]
[400320608,1767367706174,-500.0,0.00013989,2]
[400320609,1767367706208,-500.0,0.00013989,2]
[400320610,1767367706239,-500.0,0.00013989,2]
[400320611,1767367706272,-500.0,0.00013989,2]
[400320612,1767367706304,-500.0,0.00013989,2]
[400320613,1767367706339,-500.0,0.00013989,2]
[400320614,1767367706371,-500.0,0.00013989,2]
[400320615,1767367706405,-500.0,0.00013989,2]
[400320616,1767367706437,-500.0,0.00013989,2]
[400320617,1767367706470,-500.0,0.00013989,2]
[400320618,1767367706502,-500.0,0.00013989,2]
[400320619,1767367706534,-500.0,0.00013989,2]
[400320620,1767367706565,-500.0,0.00013989,2]
[400320621,1767367706597,-500.0,0.00013989,2]
[400320622,1767367706628,-500.0,0.00013989,2]
[400320623,1767367706659,-500.0,0.00013989,2]
[400320624,1767367706694,-500.0,0.00013989,2]
[400320625,1767367706728,-500.0,0.00013989,2]
[400320626,1767367706761,-500.0,0.00013989,2]
[400320627,1767367706785,-105174.5749402,0.0001399,2]
[400320628,1767367706809,-223.65078012,0.00014207,2]
[400320629,1767367706835,-1406.93,0.00014463,2]
[400320630,1767367706860,-2283.4698,0.00014916,2]
[400320631,1767367706885,-1200.0,0.00014967,2]
[400320632,1767367706911,-4703.43948709,0.00014968,2]
[400320633,1767367706943,-2732.95190496,0.00014968,2]
[400320634,1767367706968,-166.80790393,0.00014968,2]
[400320635,1767367706992,-218.41495829,0.00014968,2]
[400320636,1767367707017,-4788.87488836,0.00015,2]
[400320637,1767367707041,-15453.78499369,0.00015,2]
[400320638,1767367707066,-300.0,0.00015006,2]
[400320639,1767367707090,-200.0,0.00015007,2]
[400320640,1767367707336,-151.0,0.00015007,2]
[400320641,1767367707363,-151.0,0.00015007,2]
[400320642,1767367707389,-151.0,0.00015007,2]
[400320643,1767367707415,-151.0,0.00015007,2]
[400320644,1767367707444,-151.0,0.00015007,2]
[400320645,1767367707472,-151.0,0.00015007,2]
[400320646,1767367707497,-200.0,0.00015007,2]
[400320647,1767367707524,-151.0,0.00015007,2]
[400320648,1767367707551,-151.0,0.00015007,2]
[400320649,1767367707578,-151.0,0.00015007,2]
[400320650,1767367707611,-151.0,0.00015007,2]
[400320651,1767367707640,-151.0,0.00015007,2]
[400320652,1767367707665,-684.7274,0.00015015,2]
[400320653,1767367707694,-347.02675759,0.00015015,2]
[400320654,1767367707727,-500.0,0.00015015,2]
[400320655,1767367707755,-232.42126564,0.00015015,2]
[400320656,1767367707787,-319.62166208,0.00015015,2]
[400320657,1767367707812,-274.69,0.00015015,2]
[400320658,1767367707838,-185.867,0.00015015,2]
[400320659,1767367707876,-1000000.0,0.00015016,2]
[400320660,1767367707902,-2500.0,0.00015068,2]
[400320661,1767367707930,-255.0,0.00015107,2]
[400320662,1767367707956,-626.8759,0.00015115,2]
[400320663,1767367707981,-872.779,0.00015115,2]
[400320664,1767367708006,-461.42320515,0.0001517,2]
[400320665,1767367708032,-4448.9,0.00015669,2]
[400320666,1767367708057,-642.3052562,0.00016,2]
[400320667,1767367709881,1156.40036966,0.00015,2]
[400320668,1767367719455,8843.60963034,0.00015,2]
[400320669,1767367719479,1846.44333362,0.00015,2]
[400320700,1767367831533,-1493.83764128,0.00014916,2]
[400320701,1767367831545,-574.96778752,0.00014916,2]
[400320702,1767367831642,-4437.5448712,0.00014916,2]
[400320703,1767367831652,-300.0,0.00015014,2]
[400320704,1767367831661,-1200.0,0.00015014,2]
[400320705,1767367831671,-500.0,0.00015015,2]
[400320706,1767367831682,-500.0,0.00015015,2]
[400320707,1767367831692,-359.68142785,0.00015015,2]
[400320708,1767367831702,-195.0,0.00015595,2]
[400320709,1767367831711,-600.0,0.00015595,2]
[400320710,1767367831721,-300.0,0.00015595,2]
[400320711,1767367831731,-532.96128911,0.00015595,2]
[400320712,1767367831743,-156.8839298,0.00015595,2]
[400320713,1767367831753,-195.0,0.00016045,2]
[400320715,1767367831762,-609.90361204,0.00016045,2]
[400320717,1767367831771,-7483.2,0.00016174,2]
[400320719,1767367831780,-999.0,0.00016174,3]
[400320721,1767367831789,-206.40723639,0.00016174,2]
[400320723,1767367831799,-302.33857604,0.00016174,2]
[400320724,1767367831808,-151.0,0.00016326,2]
[400320725,1767367831818,-151.0,0.00016326,2]
[400320726,1767367831828,-195.0,0.00016407,2]
[400320727,1767367831844,-500.0,0.00016438,2]
[400320728,1767367831857,-500.0,0.00016438,2]
[400320729,1767367831867,-500.0,0.00016438,2]
[400320730,1767367831876,-500.0,0.00016438,2]
[400320732,1767367831885,-198.26807016,0.00016438,2]
[400320733,1767367831895,-22.62290146,0.00016438,2]
[400320734,1767367831907,-221.62910633,0.00016438,2]
[400320735,1767367831916,-200.0,0.00016458,2]
[400320736,1767367831926,-195.0,0.00016516,2]
[400320737,1767367831935,-600.0,0.00016516,2]
[400320738,1767367831944,-300.0,0.00016516,2]
[400320739,1767367831954,-2500.0,0.00016516,2]
[400320740,1767367831963,-1641.77979649,0.00016516,2]
[400320741,1767367831973,-155.0,0.00016828,2]
[400320742,1767367831983,-219.54585315,0.00016973,2]
[400320743,1767367831993,-250.0,0.00017,2]
[400320744,1767367832003,-250.0,0.00017792,2]
[400320745,1767367832011,-300.0,0.00017792,2]
[400320746,1767367832021,-152.46705546,0.00017792,2]
[400320747,1767367832031,-883.2926742,0.00018061,2]
[400320748,1767367837637,-1849.65923069,0.00018061,2]
[400320749,1767367837647,-2152.90572232,0.00018078,2]
[400320750,1767367837659,-2929.06137342,0.00018078,2]
[400320751,1767367837670,-4324.22977798,0.00018078,2]
[400320752,1767367837681,-6333.48728925,0.00018078,2]
[400320753,1767367837691,-300.0,0.00019,2]
[400320754,1767367837700,-3824.73,0.0001918,2]
[400320755,1767367837711,-150.0,0.0002,20]
[400320756,1767367837720,-2657.44,0.00020145,2]
[400320757,1767367837729,-512.46,0.00020145,2]
[400320758,1767367837739,-2115.25,0.00020145,2]
[400320759,1767367837748,-150.99,0.00020145,2]
[400320760,1767367837757,-335.47,0.00020145,2]
[400320761,1767367837767,-1073.56,0.00020145,2]
[400320762,1767367837776,-30206.31,0.00021,2]
[400320763,1767367837786,-2732.95190489,0.00021153,2]
[400320764,1767367837796,-235.01856769,0.00021781,2]
[400320765,1767367837805,-157.94,0.00022305,2]
[400320766,1767367837816,-160.05,0.000227,14]
[400320767,1767367837825,-460.27795054,0.00023417,2]
[400320769,1767367837835,-2000.0,0.000238,2]
[400320770,1767367837844,-5000.0,0.00023918,2]
[400320771,1767367837853,-2732.95190489,0.00024246,2]
[400320772,1767367837863,-455.06116611,0.00024303,2]
[400320773,1767367837872,-150.0,0.00024634,2]
[400320774,1767367837881,-151.0,0.00024799,2]
[400320775,1767367837891,-269.70239277,0.00024799,2]
[400320776,1767367837901,-19271.04447639,0.000248,3]
[400320777,1767367837915,-2215.62214884,0.000248,3]
[400320778,1767367837927,-1565.86938512,0.000248,3]
[400320780,1767367837938,-3045.36330864,0.000248,3]
[400320784,1767367837969,-4996.68765254,0.000248,3]
[400320786,1767367837984,-40750.444,0.000248,3]
[400320789,1767367837998,-8355.461751,0.000248,3]
[400320791,1767367838011,-35999.95095939,0.000248,3]
[400320793,1767367838023,-615.59451959,0.000248,3]
[400320795,1767367838038,-20902.55607671,0.000248,3]
[400320797,1767367838050,-2202.36600076,0.000248,3]
[400320800,1767367839648,-202.27679457,0.00024799,2]
[400320801,1767367839658,-615.00501975,0.000248,3]
[400320802,1767367839675,-3804.38034052,0.000248,3]
[400320803,1767367840059,-369.0,0.000248,3]
[400320804,1767367843535,-151.0,0.00017628,2]
[400320805,1767367843545,-151.0,0.00018279,2]
[400320806,1767367843555,-54.204,0.00024799,2]
[400320807,1767367843596,-97.50359593,0.00024799,2]
[400320808,1767367843607,-162.69488595,0.00024799,2]
[400320809,1767367843616,-277.55836122,0.00024799,2]
[400320810,1767367844799,-222.44163878,0.00024799,2]
[400320811,1767367844809,-154.65820391,0.00024799,2]
[400320812,1767367844820,-22.52684698,0.00024799,2]
[400320813,1767367844894,-201.20831648,0.00024799,2]
[400320814,1767367844904,-258.29261721,0.000248,3]
[400320815,1767367844916,-44185.0,0.000248,3]
[400320826,1767367845607,-10236.14779082,0.000248,3]
[400320827,1767367845705,-351.5521247,0.000248,3]
[400320828,1767367845717,-1548.1683893,0.000248,3]
[400320865,1767368051708,735.14840768,0.000301,120]
[400320871,1767369031609,-321.0804,0.00014773,2]
[400320872,1767369031622,-178.9196,0.00014773,2]
[400320873,1767369031633,-1000.0,0.00015321,2]
[400320874,1767369031644,-170.69328932,0.00015868,2]
[400320875,1767369031656,-3.68206891,0.00015868,2]
[400320876,1767369031666,-195.0285,0.00018054,2]
[400320877,1767369031676,-212.0,0.00020382,2]
[400320878,1767369031686,-169.902,0.00020382,2]
[400320879,1767369031696,-150.0,0.00020382,2]
[400320880,1767369031707,-52.15600781,0.00020382,2]
[400320881,1767369031730,-97.84399219,0.00020382,2]
[400320882,1767369031741,-150.0,0.00020382,2]
[400320883,1767369031751,-150.0,0.00020382,2]
[400320884,1767369031760,-60.81427479,0.00020943,2]
[400320885,1767369031772,-3740.29572521,0.00020943,2]
[400320886,1767369031782,-166.66,0.00022175,30]
[400320887,1767369031792,-164.50064935,0.000224,42]
[400320888,1767369031801,-150.0,0.000225,14]
[400320889,1767369031811,-166.66,0.00022642,30]
[400320890,1767369031821,-164.50064929,0.00022655,43]
[400320891,1767369031832,-164.50064929,0.00022911,44]
[400320892,1767369031842,-166.66,0.00023109,30]
[400320893,1767369031852,-164.50064929,0.00023166,44]
[400320894,1767369031862,-500.0,0.00023233,2]
[400320895,1767369031872,-150.0,0.00023382,2]
[400320896,1767369031881,-150.0,0.00023382,2]
[400320897,1767369031891,-164.50064929,0.00023422,45]
[400320898,1767369031900,-166.66,0.00023576,30]
[400320899,1767369031910,-164.50064929,0.00023677,45]
[400320900,1767369031920,-2000.0,0.000238,2]
[400320901,1767369031930,-164.50064929,0.00023933,46]
[400320902,1767369031939,-166.66,0.00024042,30]
[400320903,1767369031949,-164.50064929,0.00024188,47]
[400320904,1767369031958,-164.50064929,0.00024444,47]
[400320905,1767369031968,-208.55,0.00024498,2]
[400320906,1767369031978,-166.66,0.00024509,30]
[400320907,1767369031987,-208.23,0.00024514,2]
[400320908,1767369031996,-8868.86908378,0.0002469,2]
[400320909,1767369032008,-1131.14091622,0.0002469,2]
[400320910,1767369032017,-156.61461442,0.00024699,2]
[400320911,1767369032027,-458.26074274,0.00024699,2]
[400320912,1767369032036,-185.867,0.00024699,7]
[400320913,1767369032045,-159.74919567,0.00024699,8]
[400320914,1767369032055,-166.80790393,0.00024699,2]
[400320915,1767369032064,-164.50064929,0.00024699,48]
[400320916,1767369032074,-150.0,0.00024699,2]
[400320917,1767369032085,-11613.71442839,0.000247,2]
[400320918,1767369032096,-23751.62840029,0.000247,2]
[400320919,1767369032108,-1422.63899574,0.000247,2]
[400320920,1767369032120,-12489.8751412,0.000247,2]
[400320921,1767369032131,-617.05930966,0.000247,2]
[400320922,1767369032142,-1653.98044073,0.000247,2]
[400320923,1767369032154,-2068.01830625,0.000247,2]
[400320924,1767369032164,-426.83436047,0.000247,2]
[400320925,1767369032175,-4201.65523545,0.000247,2]
[400320926,1767369032186,-91339.42706323,0.000247,2]
[400320935,1767369037744,-151.0,0.0001696,2]
[400320936,1767369037755,-151.0,0.0001696,2]
[400320937,1767369037765,-179.57486647,0.000247,2]
[400320940,1767369038449,-1786.25724381,0.000247,2]
[400320941,1767369038461,-5653.13711646,0.000247,2]
[400320942,1767369038474,-1589.49768161,0.000247,2]
[400320943,1767369038515,-4996.68781565,0.000247,2]
[400320944,1767369038531,-40750.444,0.000247,2]
[400320945,1767369038546,-8355.461751,0.000247,2]
[400320946,1767369038561,-36008.590824,0.000247,2]
[400320947,1767369038578,-39655.3368188,0.000247,2]
[400320948,1767369038590,-19845.24128045,0.000247,2]
[400320949,1767369038602,-5778.20325848,0.000247,2]
[400320950,1767369038613,-13861.72199951,0.000247,2]
[400320951,1767369038624,-957.2000025,0.000247,2]
[400320989,1767369039794,-7888.54254468,0.000247,2]
[400320990,1767369039806,-523.34287504,0.000247,2]
[400320991,1767369039817,-134400.09678827,0.000247,2]
[400320992,1767369039828,-396.71618048,0.000247,2]
[400320993,1767369039840,-257.76941793,0.000247,2]
[400320994,1767369039994,-15390.49999992,0.000247,2]
[400320995,1767369040006,-268.498,0.000247,2]
[400320996,1767369040017,-763.45759774,0.000247,2]
[400320997,1767369040028,-427.39638274,0.000247,2]
[400320998,1767369040151,-356.68236483,0.000247,2]
[400321001,1767369040163,-644.38,0.000247,2]
[400321037,1767369044575,-150.0,0.00020382,2]
[400321038,1767369044584,-150.0,0.000225,14]
[400321039,1767369044594,-8044.33608363,0.000247,2]
[400321040,1767369044680,-337943.16592459,0.000247,2]
[400321041,1767369044690,-500.0,0.00024799,2]
[400321042,1767369044700,-471.92804448,0.00024799,2]
[400321043,1767369044711,-151.0,0.00024799,2]
[400321044,1767369044722,-227.53058306,0.000248,2]
[400321045,1767369044731,-20902.5560768,0.000248,3]
[400321046,1767369044741,-273.15367817,0.00024887,2]
[400321047,1767369044751,-1588.0,0.000249,2]
[400321048,1767369044761,-151.0,0.000249,7]
[400321049,1767369044771,-151.0,0.000249,7]
[400321050,1767369044781,-151.0,0.000249,7]
[400321051,1767369044791,-151.0,0.000249,7]
[400321052,1767369044801,-151.0,0.000249,7]
[400321053,1767369044811,-151.0,0.000249,7]
[400321054,1767369044820,-151.0,0.000249,7]
[400321055,1767369044830,-151.0,0.000249,7]
[400321056,1767369044841,-151.0,0.000249,7]
[400321057,1767369044851,-151.0,0.000249,7]
[400321058,1767369044861,-151.0,0.000249,7]
[400321059,1767369044871,-937.929345,0.000249,7]
[400321060,1767369044881,-937.929345,0.000249,7]
[400321061,1767369044891,-937.929345,0.000249,7]
[400321062,1767369044901,-937.929345,0.000249,7]
[400321063,1767369044911,-151.0,0.000249,7]
[400321064,1767369044921,-151.0,0.000249,7]
[400321065,1767369044932,-151.0,0.000249,7]
[400321066,1767369044942,-151.0,0.000249,7]
[400321067,1767369044952,-151.0,0.000249,7]
[400321068,1767369044962,-206625.31491197,0.000249,3]
[400321069,1767369044974,-345.69,0.000249,3]
[400321070,1767369044986,-11486.79525493,0.000249,3]
[400321071,1767369045001,-384.20868267,0.000249,3]
[400321072,1767369045012,-5559.86373034,0.000249,3]
[400321076,1767369045731,-4064.13049362,0.000249,3]
[400321079,1767369045790,-897.45,0.000249,3]
[400321080,1767369045846,-7208.14153754,0.000249,3]
[400321148,1767369286393,1490.0,0.0003,120]
[400321150,1767369534288,159.02,0.00012395,2]
[400321151,1767369585706,-458.92,0.00013699,2]
[400321152,1767369585740,-151.0,0.00017708,2]
[400321153,1767369585770,-151.0,0.00017708,2]
[400321154,1767369585805,-151.0,0.00017723,2]
[400321155,1767369585835,-151.0,0.00017723,2]
[400321156,1767369585868,-159.02,0.00018592,2]
[400321157,1767369585897,-200.54456707,0.00019082,2]
[400321158,1767369585928,-458.92,0.00020187,2]
[400321159,1767369585958,-150.0,0.00020392,2]
[400321160,1767369585988,-150.0,0.00020392,2]
[400321161,1767369586016,-150.0,0.00020392,2]
[400321162,1767369586045,-150.0,0.00020392,2]
[400321163,1767369586078,-530.0,0.00020849,2]
[400321164,1767369586107,-150.0,0.000225,14]
[400321165,1767369586136,-150.0,0.00023392,2]
[400321166,1767369586165,-150.0,0.00023392,2]
[400321167,1767369586194,-227.53058306,0.00024402,2]
[400321168,1767369586224,-185.867,0.00024402,6]
[400321169,1767369586252,-301.48234093,0.0002456,2]
[400321170,1767369586282,-300.0,0.00024598,2]
[400321171,1767369590049,-294.68321069,0.00024599,2]
[400321172,1767369590073,-10000.01,0.00024599,2]
[400321173,1767369590103,-10000.01,0.00024599,2]
[400321174,1767369591858,-10000.01,0.00024599,2]
[400321175,1767369592030,-10000.01,0.00024599,2]
[400321176,1767369592196,-10000.01,0.00024599,2]
[400321177,1767369592351,-10000.01,0.00024599,2]
[400321178,1767369592503,-10000.01,0.00024599,2]
[400321179,1767369592647,-10000.01,0.00024599,2]
[400321180,1767369592790,-10000.01,0.00024599,2]
[400321181,1767369592905,-10000.01,0.00024599,2]
[400321182,1767369593041,-10000.01,0.00024599,2]